{"text_format":"3","workbook":"xlsx","n_sheets":2,"sheets":["Análise de Portfólio","Gráfico de Pizza do Portfólio"],"not_rendered":{"charts":2,"images":1,"defined_names":2},"unopened":[{"sheet":"Gráfico de Pizza do Portfólio","index":1,"reason":"not_a_worksheet"}],"read":"whole","date_system":"1900"}

{"sheet":"Análise de Portfólio","index":0,"n_rows":9,"n_cols":11,"rows_kept":9,"merged":[[0,0,1,5],[0,6,0,8],[0,9,0,10],[1,6,1,8],[1,9,1,10],[2,0,3,5],[2,6,2,8],[2,9,2,10],[3,6,3,8],[3,9,3,10]]}
["Análise de Portfólio",{"$nulls":5},"Custo total de contas",null,null,{"$f":"SUM(G6:G8)","v":null}]
[{"$nulls":6},"Valor de contas",null,null,{"$f":"SUM(I6:I8)","v":null}]
[{"$f":"TODAY()","v":null},{"$nulls":5},"Ganho/Perda não considerado R$",null,null,{"$f":"J2-J1","v":null}]
[{"$nulls":6},"Ganho/Perda não considerado %",null,null,{"$f":"(J2/J1)-100%","v":null}]
["Nome do Investimento","Nome ou Número da Conta","Símbolo","Quantidade","Preço de Compra por Ação","Taxas Comerciais","Custo Total (Preço de Compra + Taxas)","Cota Atual","Valor de Mercado","Ganho/Perda (R$)","Ganho/Perda (%)"]
["A Datum Corporation","Woodgrove Bank","AAAA",100,{"v":49,"d":"R$49.00"},{"v":29,"d":"R$29.00"},{"$f":"([Quantidade]*[Preço de Compra Por Ação])+[Taxas Comerciais]","v":null},{"v":56.99,"d":"R$56.99"},{"$f":"[Quantidade]*[Cota Atual]","v":null},{"$f":"[Valor de Mercado]-[Custo Total (Preço de Compra + Taxas)]","v":null},{"$f":"IF(ISERR([Valor de Mercado]/[Custo Total (Preço de Compra + Taxas)]),\"\",([Valor de Mercado]/[Custo Total (Preço de Compra + Taxas)])-100%)","v":null}]
["ACME","Woodgrove Bank","AWAW",250,{"v":21.56,"d":"R$21.56"},{"v":13,"d":"R$13.00"},{"$f":"([Quantidade]*[Preço de Compra Por Ação])+[Taxas Comerciais]","v":null},{"v":19.13,"d":"R$19.13"},{"$f":"[Quantidade]*[Cota Atual]","v":null},{"$f":"[Valor de Mercado]-[Custo Total (Preço de Compra + Taxas)]","v":null},{"$f":"IF(ISERR([Valor de Mercado]/[Custo Total (Preço de Compra + Taxas)]),\"\",([Valor de Mercado]/[Custo Total (Preço de Compra + Taxas)])-100%)","v":null}]
["Wingtip Toys","Woodgrove Bank","WWTT",1200,{"v":7.01,"d":"R$7.01"},{"v":26,"d":"R$26.00"},{"$f":"([Quantidade]*[Preço de Compra Por Ação])+[Taxas Comerciais]","v":null},{"v":7.56,"d":"R$7.56"},{"$f":"[Quantidade]*[Cota Atual]","v":null},{"$f":"[Valor de Mercado]-[Custo Total (Preço de Compra + Taxas)]","v":null},{"$f":"IF(ISERR([Valor de Mercado]/[Custo Total (Preço de Compra + Taxas)]),\"\",([Valor de Mercado]/[Custo Total (Preço de Compra + Taxas)])-100%)","v":null}]
["Total",{"$nulls":5},{"$f":"SUBTOTAL(109,[Custo Total (Preço de Compra + Taxas)])","v":null},null,{"$f":"SUBTOTAL(109,[Valor de Mercado])","v":null},{"$f":"SUBTOTAL(109,[Ganho/Perda (R$)])","v":null},{"$f":"Tabela1[[#Totals],[Valor de Mercado]]/Tabela1[[#Totals],[Custo Total (Preço de Compra + Taxas)]]-100%","v":null}]